bitfinex/quotes_ETHUSD_20250414
["timestamp","ask_amount","ask_price","bid_price","bid_amount"]
[1744637593978,6.01251,1663.2,1662.8,6.01375]
[1744637594184,0.656142,1663.4,1662.6,0.817]
[1744637594185,6.667922,1663.4,1663.0,6.01301]
[1744637594532,6.01227,1663.3,1662.9,12.02692]
[1744637594758,6.01258,1663.2,1662.8,12.0277]
[1744637595061,0.55,1663.3,1662.7,0.06012472]
[1744637595248,6.01358,1663.0,1662.3,0.7758]
[1744637595432,0.601358,1662.9,1662.4,0.06014002]
[1744637595632,6.01289,1663.1,1662.7,6.01399]
[1744637596033,6.01321,1663.1,1662.7,6.01428]
[1744637596228,0.656142,1663.4,1662.6,6.01454]
[1744637596229,6.01371,1662.9,1662.6,6.01454]
[1744637596437,6.01308,1663.1,1662.7,6.07442391]
[1744637596645,6.668002,1663.4,1662.7,6.01418]
[1744637596861,6.01298,1663.1,1662.7,12.02832]
[1744637597062,6.6790002,1663.3,1662.8,6.01395]
[1744637597276,0.05,1663.4,1663.0,4.53542126]
[1744637597441,0.05,1663.4,1663.1,6.01272]
[1744637597644,6.01229,1663.3,1662.9,6.01345]
[1744637597856,0.05,1663.4,1663.0,0.06012426]
[1744637598256,0.05,1663.4,1663.1,6.01272]
[1744637598457,6.06178,1663.4,1663.1,6.01269]
[1744637598670,6.06178,1663.4,1662.9,6.01355]
[1744637598671,6.01238,1663.3,1662.9,6.01355]
[1744637598870,13.281193,1663.4,1663.0,6.01309]
[1744637599081,1.257333,1663.4,1663.0,6.01309]
[1744637599266,1.257333,1663.4,1663.0,6.01307]
[1744637599679,7.269243,1663.4,1662.9,6.01354]
[1744637599971,0.05,1663.4,1662.9,6.01359]
[1744637600172,0.05,1663.4,1663.2,6.01235]
[1744637600540,0.05,1663.4,1663.3,6.07225599]
[1744637600755,0.05,1663.4,1663.1,6.0128]
[1744637601072,0.05,1663.4,1662.5,6.01503]
[1744637601272,0.05,1663.4,1663.2,6.01238]
[1744637601477,0.05,1663.4,1663.1,6.01279]
[1744637601815,0.05,1663.4,1663.2,6.01214]
[1744637601982,0.05,1663.4,1663.0,6.01297]
[1744637602152,0.05,1663.4,1663.1,6.01272]
[1744637602520,0.05,1663.4,1663.3,6.01214]
[1744637602784,0.05,1663.4,1663.2,6.01234]
[1744637602999,0.05,1663.4,1662.9,0.8168]
[1744637603307,6.01236,1663.3,1662.9,12.02697]
[1744637603479,0.05,1663.4,1663.0,6.01306]
[1744637603690,0.05,1663.4,1662.9,6.01359]
[1744637603981,0.05,1663.4,1663.1,6.01275]
[1744637604285,0.05,1663.4,1663.3,6.01214]
[1744637604580,10.192,1664.1,1663.5,0.7792]
[1744637604880,16.20144,1664.1,1663.8,6.01027]
[1744637605080,0.7586,1664.3,1663.8,6.01013]
[1744637605304,0.7586,1664.3,1663.9,6.00977]
[1744637605499,6.76726,1664.3,1663.9,6.00977]
[1744637605782,6.685656,1664.2,1663.7,6.01051]
[1744637605947,0.05,1664.4,1663.8,10.54557126]
[1744637606145,6.00919,1664.2,1663.7,12.02128]
[1744637606373,6.01011,1663.9,1663.5,6.79054]
[1744637606583,6.01011,1663.9,1663.5,6.79045]
[1744637606780,0.601011,1663.9,1663.7,6.01045]
[1744637607086,6.00978,1664.0,1663.5,6.79051]
[1744637607275,10.19,1664.2,1663.5,0.7792]
[1744637607470,6.01028,1663.9,1663.5,6.79061]
[1744637607784,6.01039,1663.8,1663.5,0.7792]
[1744637607985,6.01105,1663.7,1663.2,10.54787126]
[1744637608301,6.01191,1663.4,1663.0,6.01321]
[1744637608507,6.01149,1663.5,1663.1,6.01282]
[1744637608669,6.612225,1663.6,1662.8,0.7706]
[1744637608850,0.601105,1663.6,1663.2,6.01221]
[1744637609159,0.601105,1663.6,1663.3,6.012]
[1744637609366,0.601105,1663.6,1663.0,10.54863126]
[1744637609367,0.601105,1663.6,1663.2,12.02488]
[1744637609564,0.601105,1663.6,1663.3,12.02413]
[1744637609874,6.55962,1664.0,1663.5,6.01139]
[1744637609875,12.01949,1664.0,1663.5,6.01139]
[1744637610076,6.00999,1663.9,1663.5,6.01139]
[1744637610260,6.00964,1664.0,1663.6,6.01101]
[1744637610459,6.00974,1664.0,1663.5,6.01127]
[1744637610790,0.600974,1663.9,1663.6,6.01072]
[1744637610950,10.189,1664.1,1663.3,0.8147]
[1744637611151,10.189,1664.1,1663.6,6.011]
[1744637611380,10.189,1664.1,1663.3,0.8147]
[1744637611567,16.19849,1664.1,1663.5,12.02242]
[1744637611768,6.00942,1664.1,1663.6,6.01102]
[1744637611964,0.600942,1664.0,1663.6,6.01102]
[1744637612158,6.610562,1664.0,1663.5,12.02262]
[1744637612358,0.600942,1664.0,1663.6,6.01091]
[1744637612559,0.600942,1664.0,1663.4,6.01169]
[1744637612877,0.600942,1664.0,1663.0,4.53542126]
[1744637612878,6.56067,1663.8,1663.2,12.02478]
[1744637613075,6.0107,1663.7,1663.2,6.01239]
[1744637613387,0.55,1663.6,1663.2,6.01249]
[1744637613590,0.55,1663.4,1662.7,0.8072]
[1744637613811,0.55,1663.4,1662.1,6.16]
[1744637613812,6.76754,1663.3,1662.3,0.8072]
[1744637614020,0.55,1662.9,1662.4,6.01536]
[1744637614196,6.01309,1663.1,1662.5,6.01477]
[1744637614516,0.55,1663.1,1662.7,6.01416]
[1744637614717,6.56297,1663.1,1662.6,6.01457]
[1744637614936,16.358,1663.2,1662.5,6.01503]
[1744637615098,16.358,1663.2,1662.8,6.01363]
[1744637615304,1.3054,1663.3,1662.5,6.01476]
[1744637615621,46.87,1663.5,1663.3,6.01214]
[1744637615817,0.806,1663.7,1663.3,6.01197]
[1744637615999,0.806,1663.7,1663.1,6.0128]
[1744637616200,1.9055,1663.7,1663.3,6.01201]
[1744637616517,1.9055,1663.7,1663.0,6.01322]
[1744637616714,7.91624,1663.7,1663.2,6.01237]
[1744637616920,1.9055,1663.7,1662.9,0.7773]
[1744637617105,1.9055,1663.7,1663.2,6.01231]
[1744637617106,6.81674,1663.7,1663.2,6.01231]
[1744637617310,6.01119,1663.6,1663.1,12.02551]
[1744637617509,0.806,1663.7,1662.9,0.7773]
[1744637617510,0.806,1663.7,1663.2,0.06011562]
[1744637617740,10.189,1663.8,1663.4,6.01158]
[1744637617929,10.189,1663.8,1663.3,6.01192]
[1744637618095,11.2079,1663.8,1663.1,6.01284]
[1744637618285,11.2079,1663.8,1663.5,6.01128]
[1744637618617,6.76541,1664.0,1663.5,6.01128]
[1744637618618,6.76552,1664.0,1663.5,6.01117]
[1744637618919,6.76552,1664.0,1663.5,12.02246]
[1744637619121,0.7558,1664.0,1663.6,6.01075]
[1744637619335,0.7558,1664.0,1663.5,6.01135]
[1744637619517,6.76569,1664.0,1663.5,6.0113]
[1744637619717,6.01034,1663.8,1663.4,6.01161]
[1744637619914,6.01034,1663.8,1663.3,6.81479]
[1744637620124,6.686589,1663.9,1663.4,6.01164]
[1744637620323,6.686559,1663.9,1663.4,6.01147]
[1744637620535,6.686699,1663.9,1663.4,6.0116]
[1744637620694,0.6686699,1663.8,1663.5,6.01141]
[1744637620891,0.6686699,1663.8,1663.1,0.7885]
[1744637621118,6.56088,1663.7,1663.1,0.7885]
[1744637621327,0.55,1663.7,1663.1,6.80128]
[1744637621546,0.55,1663.5,1663.1,6.01271]
[1744637621719,6.01183,1663.4,1662.8,6.82543]
[1744637621909,10.9631,1663.6,1663.0,6.01322]
[1744637622112,12.05941,1663.6,1663.2,6.01236]
[1744637622329,12.05941,1663.6,1663.3,6.01187]
[1744637622611,12.05941,1663.6,1663.3,6.01201]
[1744637622811,12.05941,1663.6,1662.8,0.8116]
[1744637622812,16.97441,1663.6,1663.1,6.01284]
[1744637623040,10.9631,1663.6,1662.8,0.8116]
[1744637623341,16.97425,1663.6,1663.1,6.01275]
[1744637623534,0.7751,1663.6,1663.2,6.01237]
[1744637623722,0.7751,1663.6,1663.4,6.01174]
[1744637623919,10.188,1663.7,1663.4,6.01174]
[1744637624232,11.2068,1663.7,1662.9,6.01359]
[1744637624433,17.21772,1663.7,1663.2,6.0124]
[1744637624614,23.22861,1663.7,1663.2,6.01237]
[1744637624942,6.01123,1663.6,1663.1,6.01283]
[1744637625154,6.0125,1663.2,1662.5,0.8327]
[1744637625333,6.0125,1663.2,1662.3,4.53542126]
[1744637625334,6.01409,1662.8,1662.3,6.01563]
[1744637625512,12.02741,1662.9,1662.4,6.01527]
[1744637625722,6.01433,1662.7,1662.3,6.01576]
[1744637625945,1.3582,1662.7,1662.2,2.45924057]
[1744637626149,6.01485,1662.6,1662.2,2.45924057]
[1744637626445,6.56572,1662.4,1662.2,2.45924057]
[1744637626672,0.7652,1662.3,1662.2,2.45924057]
[1744637627035,7.33096,1662.3,1662.2,2.45924057]
[1744637627587,10.33096,1662.3,1662.2,2.45924057]
[1744637628055,0.7652,1662.3,1662.2,2.45924057]
[1744637628247,8.009035,1662.3,1662.2,2.45924057]
[1744637628850,7.33096,1662.3,1662.2,2.45924057]
[1744637629665,1.3152,1662.3,1662.2,2.45924057]
[1744637629847,0.7652,1662.3,1662.2,2.45924057]
[1744637630048,7.33096,1662.3,1662.2,2.45924057]
[1744637630257,10.33096,1662.3,1662.2,2.45924057]
[1744637630456,6.01685,1662.0,1661.5,6.01848]
[1744637630675,9.12300313,1662.3,1661.4,5.33982126]
[1744637630850,6.01627,1662.2,1661.8,6.01755]
[1744637631368,6.01627,1662.2,1661.8,12.0351]
[1744637631572,6.01619,1662.2,1661.8,6.01755]
[1744637631872,6.01615,1662.2,1661.8,6.01742]
[1744637632073,6.01672,1662.1,1661.6,6.01807]
[1744637632368,0.80593395,1662.2,1661.8,6.01757]
[1744637632960,6.01664,1662.1,1661.7,6.01787]
[1744637633197,12.8518,1662.0,1661.6,6.01811]
[1744637633347,12.03487,1661.9,1661.5,6.01859]
[1744637633546,2.15798,1662.0,1661.5,6.0185]
[1744637633885,13.67076395,1662.2,1661.8,6.01745]
[1744637634246,6.0165,1662.1,1661.7,12.03564]
[1744637634441,7.65430395,1662.2,1661.8,6.01756]
[1744637634846,13.67061395,1662.2,1661.8,6.01756]
[1744637635047,6.0165,1662.1,1661.7,6.01792]
[1744637635285,6.0165,1662.1,1661.4,6.82339]
[1744637635286,6.01719,1662.0,1661.5,12.03685]
[1744637635448,6.01719,1662.0,1661.5,6.01833]
[1744637635646,1.3670804,1662.1,1661.5,6.01839]
[1744637635894,3.91359945,1662.6,1661.9,0.8046]
[1744637636198,3.91359945,1662.6,1662.5,6.01503]
[1744637636399,9.45e-06,1662.6,1662.5,7.35865548]
[1744637636631,9.45e-06,1662.6,1662.5,7.298516]
[1744637637329,9.45e-06,1662.9,1662.8,6.01395]
[1744637637680,9.45e-06,1662.9,1662.6,6.01456]
[1744637637879,9.45e-06,1662.9,1662.8,6.01395]
[1744637638120,9.45e-06,1662.9,1662.7,6.01413]
[1744637638313,6.01387945,1662.9,1662.5,6.01502]
[1744637638522,13.28539539,1662.9,1662.5,6.01502]
[1744637638725,1.25772539,1662.9,1662.5,6.01489]
[1744637638923,6.01390945,1662.9,1662.4,6.01531]
[1744637639139,6.01396,1662.8,1662.4,6.01531]
[1744637639339,9.45e-06,1662.9,1662.8,6.01395]
[1744637639742,9.45e-06,1662.9,1662.8,6.07407028]
[1744637640049,0.7643,1663.6,1662.7,0.7851]
[1744637640227,6.01163,1663.5,1663.0,6.01296]
[1744637640395,6.77744,1663.1,1662.4,0.7851]
[1744637640750,6.56351,1663.0,1662.5,12.08993911]
[1744637640905,0.55,1663.0,1662.7,6.01428]
[1744637641099,0.55,1663.0,1662.6,6.01464]
[1744637641295,0.55,1663.0,1662.7,6.07444311]
[1744637641495,0.55,1663.0,1662.6,12.02913]
[1744637641712,0.55,1663.0,1662.7,6.07442311]
[1744637641935,0.55,1663.0,1662.8,6.01381]
[1744637642264,0.55,1663.2,1662.9,6.07343302]
[1744637642470,0.55,1663.2,1662.4,0.7851]
[1744637642649,0.55,1662.9,1662.1,3.28470422]
[1744637642854,0.55,1662.6,1662.1,2.45950422]
[1744637643036,6.56612,1662.2,1662.1,2.45950422]
[1744637644165,16.71707,1662.3,1662.1,2.45950422]
[1744637644488,6.01612,1662.2,1662.1,2.45950422]
[1744637644782,10.7012,1662.3,1662.1,2.45950422]
[1744637645468,10.7012,1662.3,1662.2,6.01612]
[1744637645631,6.17,1662.7,1662.2,6.01612]
[1744637645632,6.17,1662.7,1662.2,0.7966]
[1744637645839,6.01452,1662.7,1662.2,6.8126]
[1744637646272,12.02896,1662.7,1662.2,6.81254]
[1744637646534,12.5797,1662.6,1662.2,0.7966]
[1744637646772,6.01511,1662.5,1662.1,2.45950422]
[1744637646934,6.01598,1662.3,1662.1,2.45950422]
[1744637647339,6.01506,1662.5,1662.1,8.47587422]
[1744637647543,6.17,1662.6,1662.4,6.01534]
[1744637647768,6.17,1662.6,1662.3,6.01556]
[1744637647949,6.17,1662.6,1662.3,6.01544]
[1744637648149,6.17,1662.6,1662.4,6.01527]
[1744637648356,6.01449,1662.7,1662.2,6.01608]
[1744637648555,6.01542,1662.4,1662.1,2.45950422]
[1744637648787,6.01506,1662.5,1662.1,8.42586422]
[1744637649087,6.01543,1662.4,1662.1,2.40950422]
[1744637649265,0.55,1662.6,1662.3,6.01564]
[1744637649587,6.56484,1662.6,1662.2,6.01611]
[1744637649743,6.56484,1662.6,1662.2,12.03207]
[1744637649940,0.7921,1662.8,1662.5,6.01498]
[1744637650177,0.7921,1662.8,1662.3,12.03133]
[1744637650178,6.80617,1662.8,1662.3,12.03133]
[1744637650481,0.55,1662.7,1662.2,1.44415742]
[1744637650667,56.78,1663.0,1662.4,12.03067]
[1744637650871,6.0141,1662.8,1662.4,6.01529]
[1744637651065,62.79327,1663.0,1662.5,6.01496]
[1744637651239,6.56397,1662.8,1662.4,12.03078]
[1744637651440,0.55,1662.8,1662.4,6.01539]
[1744637651664,6.01448,1662.7,1662.3,6.78861]
[1744637651869,6.56399,1662.8,1662.4,6.07541417]
[1744637652080,6.01472,1662.6,1662.2,6.01605]
[1744637652303,0.55,1662.6,1662.3,6.07579555]
[1744637652535,6.56467,1662.6,1662.3,0.06014555]
[1744637652806,7.271944,1662.8,1662.3,6.01558]
[1744637652966,0.55,1662.7,1662.2,6.01609]
[1744637653167,6.56438,1662.7,1662.3,6.01575]
[1744637653370,0.55,1662.7,1662.3,6.01559]
[1744637653568,0.55,1662.7,1662.4,6.01528]
[1744637654014,6.01401,1662.8,1662.4,6.01526]
[1744637654309,0.55,1662.7,1662.3,6.01573]
[1744637654520,0.55,1662.7,1662.4,6.07537403]
[1744637654808,12.02736,1662.9,1662.5,6.01485]
[1744637655023,6.01454,1662.7,1662.2,6.01598]
[1744637655166,6.5648,1662.6,1662.2,6.01598]
[1744637655388,0.55,1662.5,1661.8,0.005]
[1744637655586,6.01698,1662.0,1661.8,0.005]
[1744637655784,1.3501,1662.1,1661.8,6.02247]
[1744637656087,1.3501,1662.1,1661.8,0.005]
[1744637656404,6.5672,1661.9,1661.8,0.005]
[1744637656653,0.55,1661.9,1661.8,0.005]
[1744637656938,6.017,1662.0,1661.8,0.005]
[1744637656939,6.56684,1662.0,1661.8,0.005]
[1744637657283,0.55,1662.0,1661.8,0.005]
[1744637657923,6.56701,1662.0,1661.8,0.005]
[1744637658220,0.55,1662.0,1661.8,0.005]
[1744637658420,0.8001,1662.1,1661.8,6.02243]
[1744637658622,6.01665,1662.1,1661.8,0.005]
[1744637659319,6.5672,1661.9,1661.8,0.005]
[1744637659485,0.55,1661.9,1661.8,0.005]
[1744637659691,0.55,1662.0,1661.8,0.005]
[1744637659891,12.03336,1662.1,1661.8,0.005]
[1744637660100,6.01687,1662.0,1661.8,0.005]
[1744637660304,6.01652,1662.1,1661.8,0.005]
[1744637660701,0.55,1662.2,1661.8,0.005]
[1744637661104,0.31227322,1662.6,1662.2,6.01593]
[1744637661302,6.32716322,1662.6,1662.2,6.01608]
[1744637661513,6.01478,1662.6,1662.2,6.01608]
[1744637661840,9.585,1662.9,1662.3,0.06014818]
[1744637661994,6.01434,1662.7,1662.4,0.7777]
[1744637662192,6.01399,1662.8,1662.4,6.79295]
[1744637662394,6.01399,1662.8,1662.4,13.487485]
[1744637662630,15.59866,1662.9,1662.6,6.01453]
[1744637662631,9.585,1662.9,1662.6,6.01453]
[1744637662933,9.585,1662.9,1662.4,7.472145]
[1744637663106,46.892,1663.0,1662.8,6.01395]
[1744637663302,6.01251,1663.2,1662.8,6.01383]
[1744637663303,6.01253,1663.2,1662.8,6.01383]
[1744637663513,22.39016,1663.3,1662.9,6.07369687]
[1744637663714,6.01274,1663.2,1662.9,0.06012687]
[1744637663918,16.3778,1663.3,1662.9,6.07357687]
[1744637664319,6.01273,1663.2,1662.9,0.06012687]
[1744637664625,6.01273,1663.2,1662.9,0.06012652]
[1744637664828,12.02538,1663.2,1662.8,6.615103]
[1744637665029,12.02538,1663.2,1662.8,6.01372]
[1744637665231,6.01269,1663.2,1662.8,6.01372]
[1744637665627,16.37778,1663.3,1662.9,0.06012652]
[1744637666144,6.01266,1663.2,1662.8,6.01393]
[1744637666348,0.55,1663.1,1662.4,1.456995]
[1744637666672,6.56309,1663.1,1662.4,0.7777]
[1744637666848,6.56294,1663.1,1662.4,0.7777]
[1744637667147,17.90102126,1663.3,1662.9,6.01346]
[1744637667148,16.37795,1663.3,1662.9,6.01346]
[1744637667350,6.01304,1663.1,1662.4,0.7777]
[1744637667515,10.3656,1663.3,1662.9,6.01333]
[1744637667719,9.585,1663.3,1663.0,0.06012368]
[1744637668052,0.8251,1663.6,1663.0,7.30268737]
[1744637668205,6.00864,1664.3,1663.2,0.7511]
[1744637668206,0.7819,1664.0,1663.2,0.7511]
[1744637668405,6.01049,1663.8,1663.4,6.01176]
[1744637668633,6.01,1663.9,1663.5,6.07137523]
[1744637668634,12.02016,1663.9,1663.5,6.07137523]
[1744637668836,6.79164,1664.0,1663.5,6.07135523]
[1744637669000,6.79164,1664.0,1663.5,0.06010523]
[1744637669001,0.55,1663.8,1663.5,0.06010523]
[1744637669209,6.01037,1663.8,1663.5,0.06010523]
[1744637669642,6.01037,1663.8,1663.4,0.0601049]
[1744637669847,6.01011,1663.9,1663.4,6.0717349]
[1744637670045,6.01011,1663.9,1663.4,12.0833349]
[1744637670339,0.55,1663.8,1663.4,7.21993349]
[1744637670780,0.55,1663.8,1663.4,7.28003494]
[1744637671088,0.55,1663.8,1663.4,1.20833349]
[1744637671268,6.56054,1663.8,1663.3,6.01188]
[1744637671450,6.01075,1663.7,1663.2,6.76354]
[1744637671681,6.56112,1663.6,1663.2,0.7511]
[1744637671854,0.55,1663.8,1663.3,6.01187]
[1744637672055,6.5605,1663.8,1663.4,0.601187]
[1744637672239,6.56109,1663.6,1663.2,0.7511]
[1744637672872,6.01109,1663.6,1663.3,0.06011397]
[1744637673077,4.53542126,1663.9,1663.3,0.06011397]
[1744637673078,0.55,1663.5,1663.3,0.06011397]
[1744637673385,6.01011,1663.9,1663.3,6.07215397]
[1744637673544,6.01079,1663.7,1663.4,0.6072154]
[1744637673746,0.55,1663.7,1663.2,6.76342]
[1744637674087,0.55,1663.7,1663.3,6.01206]
[1744637674274,6.01045,1663.8,1663.2,0.7511]
[1744637674479,6.01045,1663.8,1663.2,6.7634]
[1744637675089,6.56072,1663.7,1663.2,0.7511]
[1744637675249,6.0111,1663.6,1663.2,1.427494]
[1744637675765,6.56072,1663.7,1663.2,1.427494]
[1744637676254,0.55,1663.8,1663.3,6.01206]
[1744637676461,6.56034,1663.8,1663.3,6.01206]
[1744637676708,6.56034,1663.8,1663.4,0.601206]
[1744637677146,12.5709,1663.8,1663.4,0.601206]
[1744637677346,12.5709,1663.8,1663.2,13.452324]
[1744637677759,6.56034,1663.8,1663.3,6.01205]
[1744637677982,7.0050288,1664.2,1663.2,1.427494]
[1744637678308,6.0862588,1664.2,1663.7,6.01045]
[1744637678476,6.00943,1664.1,1663.6,6.01103]
[1744637678681,0.0772288,1664.2,1663.8,0.06009062]
[1744637678682,6.0861688,1664.2,1663.8,0.06009062]
[1744637679268,0.55,1664.1,1663.8,0.06009062]
[1744637679499,6.0087,1664.3,1663.8,0.06009062]
[1744637679700,0.05,1664.4,1663.9,0.7808]
[1744637680099,6.00911,1664.2,1663.9,0.7808]
[1744637680372,0.05,1664.4,1664.0,6.00961]
[1744637680573,0.05,1664.4,1664.0,7.289581]
[1744637680879,0.05,1664.4,1664.1,0.06007977]
[1744637681088,0.05,1664.4,1664.2,6.00874]
[1744637681297,0.05,1664.4,1664.3,6.83563]
[1744637681621,0.05,1664.4,1664.3,0.8271]
[1744637681773,0.05,1664.4,1664.3,7.57927726]
[1744637681975,6.17,1665.1,1664.7,0.7707]
[1744637682266,6.17,1665.1,1664.4,0.7707]
[1744637682267,4.53542126,1665.0,1664.4,0.7707]
[1744637682489,8.98,1665.3,1664.4,0.7707]
[1744637682490,8.98,1665.3,1664.5,0.06006533]
[1744637682711,20.99011,1665.3,1664.7,6.00691]
[1744637682911,7.0332,1665.4,1664.9,0.7529]
[1744637682912,6.8678,1665.4,1664.9,0.7529]
[1744637683122,0.05,1665.4,1664.9,0.7529]
[1744637683825,0.05,1665.4,1664.9,6.75913]
[1744637683982,0.05,1665.4,1664.9,0.7529]
[1744637684182,0.05,1665.4,1665.0,6.00577]
[1744637684389,0.05,1665.4,1665.1,0.600577]
[1744637684720,0.55,1665.3,1665.1,0.600577]
[1744637684895,0.05,1665.4,1664.9,6.75908]
[1744637685097,0.05,1665.4,1664.9,6.75925]
[1744637685433,0.05,1665.4,1664.9,6.75909]
[1744637685728,0.05,1665.4,1665.0,6.0058]
[1744637686105,0.05,1665.4,1665.2,6.00527]
[1744637686423,0.05,1665.4,1665.3,0.600527]
[1744637686764,0.05,1665.4,1665.2,6.00519]
[1744637687103,0.05,1665.4,1665.0,0.7897]
[1744637687288,0.55,1665.3,1665.0,0.7897]
[1744637687487,0.05,1665.4,1665.1,0.06004262]
[1744637687687,0.05,1665.4,1665.2,0.7794]
[1744637688826,0.6,1665.4,1665.3,0.06003545]
[1744637689028,0.6,1665.4,1665.2,0.7794]
[1744637689389,0.05,1665.4,1665.2,0.7794]
[1744637689706,0.55,1665.7,1665.2,6.78451]
[1744637690042,0.55,1665.7,1665.3,6.00473]
[1744637690334,0.55,1665.7,1665.4,0.600473]
[1744637690486,6.55359,1665.7,1665.4,0.600473]
[1744637690690,6.55359,1665.7,1665.2,6.78467]
[1744637690934,0.55,1665.5,1665.2,0.7794]
[1744637691100,0.55,1665.4,1664.9,0.7808]
[1744637691302,6.00342,1665.8,1665.2,0.7808]
[1744637691490,6.00352,1665.7,1665.2,6.78596]
[1744637691690,0.3955096,1665.9,1665.4,6.00421]
[1744637691988,0.3955096,1665.9,1665.5,6.00411]
[1744637692188,0.3955096,1665.9,1665.3,6.00485]
[1744637692189,6.00327,1665.8,1665.3,6.00485]
[1744637692400,0.55,1665.8,1665.2,2.059953]
[1744637692644,0.55,1665.5,1665.2,0.7808]
[1744637692931,0.55,1665.5,1665.0,0.8044]
[1744637692932,0.55,1665.4,1665.0,0.8044]
[1744637693140,6.00445,1665.5,1664.5,0.68389153]
[1744637693141,6.55539,1665.2,1664.7,6.81135]
[1744637693447,0.55,1664.6,1664.5,0.68389153]
[1744637693593,0.55,1664.6,1664.2,6.00875]
[1744637693936,0.55,1664.6,1664.3,6.00838]
[1744637694259,6.00607,1665.0,1664.2,6.00889]
[1744637694260,6.006,1665.0,1664.2,6.00889]
[1744637694407,6.006,1665.0,1664.3,6.00846]
[1744637694408,0.55,1664.7,1664.3,6.00846]
[1744637694740,0.55,1664.8,1664.4,0.600846]
[1744637694939,0.55,1664.8,1664.1,0.8216]
[1744637694940,6.00781,1664.5,1664.1,0.8216]
[1744637695238,0.55,1664.4,1664.1,0.8216]
[1744637695422,6.00647,1664.9,1664.2,0.06007847]
[1744637695736,0.55,1665.0,1664.5,6.0076]
[1744637695917,6.55602,1665.0,1664.5,6.0076]
[1744637696100,0.55,1664.8,1664.6,0.60076]
[1744637696308,0.55,1664.8,1664.4,0.8255]
[1744637696309,0.55,1664.8,1664.4,6.83366]
[1744637696507,0.55,1664.8,1664.4,6.83362]
[1744637697193,0.55,1664.8,1664.4,6.83352]
[1744637697394,6.00625,1665.0,1664.5,6.00768]
[1744637697710,0.55,1664.9,1664.5,6.00768]
[1744637697907,0.55,1664.9,1664.6,0.600768]
[1744637698304,6.00686,1664.8,1664.4,0.8255]
[1744637698594,6.55573,1665.1,1664.5,6.00778]
[1744637698811,6.55573,1665.1,1664.6,6.00732]
[1744637699120,0.55,1664.9,1664.4,0.8255]
[1744637699422,0.55,1664.9,1664.6,6.00726]
[1744637699725,0.55,1664.9,1664.6,1.201502]
[1744637699908,6.55637,1664.9,1664.6,1.201502]
[1744637700093,6.55637,1664.9,1664.4,6.83356]
[1744637700291,0.55,1665.1,1664.5,0.0600629]
[1744637700624,0.55,1665.1,1664.4,0.8255]
[1744637700827,0.55,1664.9,1664.5,6.00759]
[1744637701013,0.55,1664.9,1663.9,3.0]
[1744637701014,6.00864,1664.3,1663.9,0.7801]
[1744637701214,14.31898851,1664.8,1663.9,0.7801]
[1744637701215,8.973,1664.6,1663.9,0.7801]
[1744637701395,0.55,1664.5,1663.9,6.78976]
[1744637701594,6.00834,1664.4,1664.0,0.678976]
[1744637701806,6.00909,1664.2,1664.0,0.678976]
[1744637702138,6.01089,1663.7,1663.4,0.7801]
[1744637702311,0.55,1663.6,1663.2,0.7801]
[1744637702508,0.7721,1664.0,1663.7,6.01052]
[1744637702846,0.55,1663.9,1663.6,6.01089]
[1744637703001,0.55,1663.9,1663.7,0.06009641]
[1744637703203,0.55,1664.0,1663.6,0.752]
[1744637703551,0.55,1664.0,1663.3,0.752]
[1744637703760,0.55,1664.0,1663.4,0.0600927]
[1744637703911,0.55,1664.0,1663.8,6.01016]
[1744637704106,8.973,1664.1,1663.9,0.06009597]
[1744637704308,6.55964,1664.0,1663.5,6.01126]
[1744637704661,0.55,1664.0,1663.6,0.601126]
[1744637704863,23.33087851,1664.5,1663.8,0.815]
[1744637705008,6.00828,1664.4,1663.9,6.00981]
[1744637705208,12.783,1664.5,1663.8,0.815]
[1744637705457,0.55,1664.2,1663.8,6.82507]
[1744637705660,6.00954,1664.1,1663.6,6.01093]
[1744637705811,17.32299851,1664.5,1663.7,0.601093]
[1744637706015,0.55,1664.0,1663.7,0.601093]
[1744637706345,0.55,1664.2,1663.7,0.601093]
[1744637706503,6.56095,1663.7,1663.2,6.81349]
[1744637706707,0.55,1663.5,1663.1,0.05]
[1744637706938,0.55,1663.3,1663.1,0.05]
[1744637707143,6.56228,1663.3,1663.1,0.05]
[1744637707318,1.3099,1663.2,1663.1,0.05]
[1744637707637,10.55185851,1663.4,1663.1,0.05]
[1744637707638,6.56202,1663.4,1663.1,0.05]
[1744637707807,6.01091,1663.7,1663.2,6.01233]
[1744637708115,12.02269,1663.6,1663.2,0.606233]
[1744637708321,6.56071,1663.7,1663.3,6.01202]
[1744637708529,6.56071,1663.7,1663.2,6.618603]
[1744637708706,0.55,1663.7,1663.3,6.01214]
[1744637708906,0.55,1663.7,1663.2,0.606233]
[1744637709109,0.55,1663.7,1663.3,6.01201]
[1744637709305,0.55,1663.7,1663.2,6.01233]
[1744637709545,0.55,1663.7,1663.5,6.01132]
[1744637709732,0.55,1663.7,1663.3,6.01195]
[1744637709907,0.55,1663.7,1663.2,6.01244]
[1744637710111,0.55,1663.7,1663.3,0.601244]
[1744637710416,6.01123,1663.6,1663.3,0.601244]
[1744637710618,12.02179,1663.7,1663.1,6.06269]
[1744637710842,6.01138,1663.6,1663.1,0.05]